[Event "Bangabandhu Premier Div League 2023-24"]
[Site "Dhaka"]
[Date "2024.02.08"]
[Round "8.2"]
[White "Pranav Vijay"]
[Black "Ahmed, Sheikh Nasir"]
[Result "1-0"]
[ECO "B48"]
[WhiteElo "2252"]
[BlackElo "2182"]
[Annotator "TA"]
[PlyCount "77"]
[EventDate "2024.02.01"]
[EventCountry "BAN"]
[SourceTitle "playchess.com"]
[Source "ChessBase"]
[SourceQuality "1"]
[TimeControl "40/5400+30:1800+30"]

{[%evp 24,77,0,-10,0,0,0,14,21,0,0,0,0,0,8,8,31,26,19,14,95,95,92,95,102,108,108,97,108,106,114,110,116,117,133,130,135,134,191,164,165,137,258,233,223,246,279,127,218,226,194,79,350,352,356,342]} 1. e4 {[%emt 0:00:02]} c5 {[%emt 0:00:13]} 2. Nf3 {[%emt 0:00:06]} e6 {[%emt 0:00:10]} 3. d4 {[%emt 0:00:06]} cxd4 {[%emt 0:00:07]} 4. Nxd4 {[%emt 0:00:05]} Nc6 {[%emt 0:00:13]} 5. Nc3 {[%emt 0:00:06]} Nf6 {[%emt 0:00:09]} 6. a3 {[%emt 0:00:32]} Qc7 {[%emt 1:32:38]} 7. Be3 {[%emt 0:04:20]} a6 {[%emt 0:00:00]} 8. Be2 {[%emt 0:01:24]} Be7 {[%emt 0:01:00]} 9. O-O {[%emt 0:02:39]} O-O {[%emt 0:00:00]} 10. f4 {[%emt 0:00:07]} d6 {[%emt 0:00:00]} 11. Qe1 {[%emt 0:00:14]} Nxd4 {[%emt 0:00:00]} 12. Bxd4 {[%emt 0:00:03]} e5 {[%emt 0:02:00]} 13. Be3 {[%emt 0:05:16]} exf4 {[%emt 0:00:30]} 14. Bxf4 {[%emt 1:22:30]} Be6 {[%emt 0:00:00]} 15. Qg3 {[%emt 0:00:00]} Kh8 {[%emt 0:01:00] The position is equal.} (15... Rfe8 {seems wilder.} 16. e5 Nd5 17. exd6 Qc5+) 16. Be3 {[%emt 0:01:00][%cal Bf4e3,Be3d4,Bd4b6][%mdl 32]} Nd7 {[%emt 0:00:30]} 17. Rad1 {[%emt 0:00:30]} Ne5 {[%emt 0:00:30]} 18. Bd4 {[%emt 0:00:30]} Rad8 {[%emt 0:00:30][%cal Ba8d8,Bd8d7,Bd7c7][%mdl 32]} 19. Bd3 {[%emt 0:00:30]} Rd7 {[%emt 0:00:30]} 20. Nd5 {[%emt 0:00:30]} Bxd5 {[%emt 0:00:00]} 21. exd5 {[%emt 0:00:30]} Qd8 {[%emt 0:01:00]} (21... g6 $11 {keeps the balance.}) 22. Bf5 $16 {[%emt 0:00:00] White is much more active. A strong pair of Bishops.} Rc7 {[%emt 0:00:30]} 23. Bb6 $40 {[%emt 0:00:00][%mdl 128] White has strong attack.} g6 {[%emt 0:00:00]} 24. Bd3 {[%emt 0:01:30]} (24. Bxg6 $2 hxg6 (24... fxg6 25. Rxf8+ Bxf8 26. Re1 $17) 25. b3 Qd7 $19) 24... f5 {[%emt 0:00:00] [#]} 25. c4 $1 {[%emt 0:00:00][%mdl 512]} Qc8 {[%emt 0:00:00]} (25... Bf6 26. c5) 26. Bxc7 {[%emt 0:00:00]} Qxc7 {[%emt 0:02:00]} 27. Kh1 {[%emt 0:01:30]} a5 {[%emt 0:00:00]} 28. b4 {[%emt 0:00:00]} Bf6 {[%emt 0:00:00]} 29. Be2 {[%emt 0:01:00]} axb4 {[%emt 0:00:00]} 30. axb4 {[%emt 0:00:00]} h5 {[%emt 0:02:00]} (30... b6 $16 {was called for.} 31. Rc1 Kg7) 31. Qe3 {[%emt 0:01:00]} Kg7 {[%emt 0:00:30]} 32. Qa7 {[%emt 0:00:00]} Ng4 {[%emt 0:00:30]} (32... Nxc4 $16 33. Rc1 Qb6 34. Qxb6 Nxb6) 33. Bxg4 {[%emt 0:00:00]} hxg4 {[%emt 0:00:00]} 34. c5 {[%emt 0:00:00]} Be5 {[%emt 0:01:00]} 35. h3 {[%emt 0:00:00]} (35. c6 $18 {and White stays clearly on top.}) 35... Kf6 {[%emt 0:00:00]} (35... Rh8 $16) 36. Rd3 $18 {[%emt 0:00:00]} (36. hxg4 $2 {too greedy.} Qh7+ 37. Kg1 Qh2+ 38. Kf2 Re8 $19) 36... Rh8 {[%emt 0:00:00]} 37. cxd6 {[%emt 0:00:00]} (37. c6 $1 $18) 37... Bxd6 $2 {[%emt 0:00:00][%mdl 8192] [#]} (37... Qc4 $16 38. Qxb7 Bxd6) 38. Qd4+ {[%emt 0:00:00]} Be5 {[%emt 0:00:00]} 39. Qxg4 {[%emt 0:04:00] Weighted Error Value: White=0.19 (very precise) /Black=0.36.  Loses game:     	---       	Black=1      Mistake:       	White=2     	Black=4      OK:         	White=11    	Black=5      Best:        	White=3     	Black=2} 1-0

[Event "Bangabandhu Premier Div League 2023-24"]
[Site "Dhaka"]
[Date "2024.02.08"]
[Round "8.2"]
[White "Alekhya Mukhopadhyay"]
[Black "Mohammad Nubairshah Shaikh"]
[Result "0-1"]
[ECO "B06"]
[WhiteElo "2184"]
[BlackElo "2428"]
[Annotator "TA"]
[PlyCount "94"]
[EventDate "2024.02.01"]
[EventCountry "BAN"]
[SourceTitle "playchess.com"]
[Source "ChessBase"]
[SourceQuality "1"]
[TimeControl "40/5400+30:1800+30"]

{[%evp 9,94,20,19,5,10,8,11,7,4,-64,-70,-67,-72,-80,-79,-75,-73,-331,-309,-314,-316,-407,-328,-392,-344,-331,-268,-279,-204,-185,-149,-160,-132,-124,-137,-138,-139,-157,-135,-236,-308,-300,-260,-264,-188,-212,-200,-205,-214,-215,-198,-208,-130,-124,-91,-160,-135,-236,-210,-316,-206,-350,-339,-376,-237,-458,-448,-443,-447,-650,-633,-646,-637,-775,-738,-12820,-988,-991,-997,-12796,-1012,-912,-855,-29989,-29990,-29990,-29989]} 1. e4 {[%emt 0:00:03]} g6 {[%emt 0:12:19]} 2. d4 {[%emt 0:00:12]} Bg7 {[%emt 0:00:18]} 3. Nc3 {[%emt 0:00:09]} c6 {[%emt 0:00:02]} 4. f4 {[%emt 0:00:05]} d6 {[%emt 0:00:53]} 5. e5 {[%emt 0:04:58]} Nh6 {[%emt 0:04:38][%cal Bg8h6,Bh6f5,Bf5h4,Bh4g2][%mdl 32]} 6. Nf3 {[%emt 0:01:02]} Bg4 {[%emt 0:00:18]} 7. Ne4 {[%emt 0:11:06]} Nf5 {[%emt 0:09:09]} 8. c3 {[%emt 0:02:36] The position is equal.} (8. Be2 {simplifies} dxe5 9. dxe5 Qxd1+ 10. Bxd1 Na6 11. Bd2) 8... Nh4 {[%emt 0:00:58]} 9. Be2 {[%emt 0:12:37]} (9. Be3 $11) 9... Nxg2+ $15 {[%emt 0:01:52]} 10. Kf2 {[%emt 0:00:08]} Bxf3 {[%emt 0:00:20]} 11. Bxf3 {[%emt 0:00:04]} Nh4 {[%emt 0:00:04]} 12. Bg4 {[%emt 0:03:09]} d5 {[%emt 0:07:18]} 13. Qb3 $2 {[%emt 0:05:21][%mdl 8192]} dxe4 $19 {[%emt 0:05:46]} 14. Qxb7 {[%emt 0:03:58] [#]} O-O $1 {[%emt 0:03:08][%cal Oh7h5]} 15. a4 {[%emt 0:14:21] [#]} (15. Be3 Qb6) 15... e6 $1 {[%emt 0:12:35][%cal Od8d5]} 16. a5 {[%emt 0:05:11]} (16. Rf1 Qd7) 16... h5 {[%emt 0:16:42]} 17. Be2 {[%emt 0:18:37]} Nd7 {[%emt 0:01:08]} 18. Qxc6 {[%emt 0:00:34]} Nf5 {[%emt 0:00:11][%cal Oe4e3] And now ...e3+! would win.} 19. Qxe4 {[%emt 0:00:54]} f6 {[%emt 0:10:29]} 20. Kg2 {[%emt 0:08:57]} Kh7 {[%emt 0:00:21]} 21. Rg1 {[%emt 0:02:34]} Rc8 {[%emt 0:01:31] Prevents Bc4} 22. Kh1 {[%emt 0:00:36]} Bh6 {[%emt 0:00:09]} 23. Ra4 {[%emt 0:02:49]} Qe7 {[%emt 0:06:00]} 24. Bc4 {[%emt 0:01:15]} (24. Ba6 $17 Rc7 25. Bd3) 24... fxe5 {[%emt 0:02:18]} 25. fxe5 {[%emt 0:00:08]} Bxc1 {[%emt 0:00:02]} 26. Rxc1 {[%emt 0:00:12]} Nh6 {[%emt 0:00:01]} 27. Be2 {[%emt 0:01:04] Dodges Ng4} Rf2 {[%emt 0:00:43]} 28. Rg1 {[%emt 0:00:51] Prevents Ng4} Nf5 {Hoping for ...Qh4.} 29. Rb4 {[%emt 0:00:17]} Rc7 {[%emt 0:00:03]} 30. Bd3 {[%emt 0:00:30]} Qf7 {[%emt 0:01:04]} (30... Qh4 31. Qxh4 Nxh4 32. Rf1 Rxf1+ 33. Bxf1) 31. Rg2 {[%emt 0:00:24]} Ne7 {[%emt 0:01:43]} 32. Rb3 {[%emt 0:01:05]} ({White should play} 32. Rxf2 Qxf2 33. Qe2) 32... Rf3 {[%emt 0:02:09]} 33. c4 {[%emt 0:00:36]} (33. Qe2 $17) 33... Kh6 {[%emt 0:01:59]} 34. Qh4 {[%emt 0:00:26]} (34. a6 $142 Nb6 35. Qe2) 34... Kg7 {[%emt 0:00:43] ...Rf4 is the strong threat.} 35. Qg5 {[%emt 0:00:22]} (35. Rg1 {is the only way for White.}) 35... Nf8 {[%emt 0:00:12]} (35... Rf4 36. d5 Nc5 (36... exd5 37. e6 $11) 37. d6) 36. Rg1 {[%emt 0:00:42]} Qf4 {[%emt 0:00:50] Threatens to win with ...Qxg5.} 37. Qxh5 $2 {[%emt 0:00:30]} (37. a6 Qxg5 (37... Qxd4 38. Bxg6 Nfxg6 39. Rxf3 $11) 38. Rxg5) 37... Rf2 {[%emt 0:00:20][%cal Oc7c4]} ({Weaker is} 37... Rd7 38. Bxg6 Rf1 (38... Rxb3 $2 {too greedy.} 39. Bf7+ $18) 39. Bc2+ Rxg1+ 40. Kxg1 $19) 38. Qh3 {[%emt 0:00:35]} Qxd4 {[%emt 0:00:15]} 39. Qg3 {[%emt 0:00:28]} (39. Rg4 $142 Qxe5 (39... Rf4 $2 40. Rxf4 Qxf4 41. a6 $19) 40. Rg2 Rxg2 41. Qxg2) 39... Nf5 40. Bxf5 {[%emt 0:00:29]} exf5 {[%emt 0:00:30]} 41. Re3 {[%emt 0:30:33] Prevents Qe4+} Qxb2 {[%emt 0:02:42] ( -> ...Qb7+)} 42. Rd3 Qb7+ {[%emt 0:01:09]} (42... f4 $142 43. Qh4 Rf7 (43... Rxc4 44. Qe7+ Kg8 45. Rxg6+ Nxg6 46. Rd8+)) 43. Rd5 {[%emt 0:00:00]} Rxc4 {[%emt 0:00:21]} 44. Rgd1 {[%emt 0:00:00]} Rf1+ {[%emt 0:00:22]} 45. Rxf1 {[%emt 0:00:00]} Qxd5+ {[%emt 0:00:02]} 46. Rf3 {[%emt 0:00:00]} Ne6 {[%emt 0:00:42]} 47. Kg1 {[%emt 0:00:00]} Rg4 {[%emt 0:00:03] Weighted Error Value: White=0.80/Black=0.49.  Loses game:     	White=1     	---        Mistake:       	White=8     	---        Inaccurate:     	---       	Black=3      OK:         	White=14    	Black=13     Best:        	White=2     	Black=5} 0-1

[Event "Bangabandhu Premier Div League 2023-24"]
[Site "Dhaka"]
[Date "2024.02.08"]
[Round "8.3"]
[White "Mayank Chakraborty"]
[Black "Hasan Md, Emam"]
[Result "1-0"]
[ECO "A85"]
[WhiteElo "2409"]
[BlackElo "2053"]
[Annotator "TA"]
[PlyCount "87"]
[EventDate "2024.02.01"]
[EventCountry "BAN"]
[SourceTitle "playchess.com"]
[Source "ChessBase"]
[SourceQuality "1"]
[TimeControl "40/5400+30:1800+30"]

{[%evp 17,87,29,40,41,41,38,43,44,36,13,35,15,83,58,104,100,188,74,70,61,179,181,387,380,383,391,391,385,383,381,458,453,464,440,443,412,550,550,546,532,547,538,696,729,741,700,992,1016,1218,1113,1198,1187,1166,1154,1312,1267,1584,1588,1557,1459,1774,1737,2156,2070,2316,2180,29986,29987,29988,29989,29991,29992]} 1. d4 {[%emt 0:00:13]} d5 {[%emt 0:00:38]} 2. c4 {[%emt 0:00:05]} e6 {[%emt 0:00:09]} 3. Nc3 {[%emt 0:00:15]} f5 {[%emt 0:00:09]} 4. Nf3 {[%emt 0:01:19]} c6 {[%emt 0:00:06]} 5. e3 {[%emt 0:01:22]} Nf6 {[%emt 0:00:05]} 6. Bd3 {[%emt 0:01:00]} Bd6 {[%emt 0:00:08]} 7. b3 {[%emt 0:02:41]} O-O {[%emt 0:00:16][%cal Bh8f8,Bf8f6,Bf6h6][%mdl 32]} 8. Bb2 {[%emt 0:01:39]} Ne4 {[%emt 0:01:29]} 9. O-O {[%emt 0:00:37]} Nd7 {[%emt 0:00:10]} 10. Ne2 {[%emt 0:01:41]} Qe7 {[%emt 0:00:25]} 11. Qc2 {[%emt 0:05:47]} Rf6 {[%emt 0:00:34]} 12. Ne5 {[%emt 0:03:56] White is slightly better.} Rh6 {[%emt 0:03:15]} 13. Bxe4 {[%emt 0:11:07]} fxe4 {[%emt 0:01:06]} 14. f4 {[%emt 0:06:20][%cal Bf2f4,Bf4e5][%mdl 32] Dodges Qg5} (14. f3 {is interesting.} exf3 15. Rxf3 b6 16. Raf1) 14... Bxe5 {[%emt 0:04:40]} (14... exf3 $11 {remains equal.} 15. Rxf3 b5) 15. fxe5 {[%emt 0:00:34]} Nf8 {[%emt 0:11:53]} (15... b6 $14) 16. Nf4 {[%emt 0:05:15]} Qh4 {[%emt 0:01:19] [#]} (16... b6 $16) 17. Nh3 {[%emt 0:03:27] Active counter play!} (17. g3 $1 $18 {[%cal Rg3h4] and White stays clearly on top.} Qg4 18. Ba3) 17... Bd7 $16 {[%emt 0:05:50]} 18. Rf4 {[%emt 0:07:03]} Qh5 {[%emt 0:02:39] [#] White stays focused until the end.} ({Black should try} 18... Qd8 $14) 19. Raf1 $1 $18 {[%emt 0:03:18] And now Ba3 would win. Black is weak on the dark squares} g5 $2 {[%emt 0:06:53] [#]} (19... Ng6) 20. Rf7 $1 {[%emt 0:04:17][%mdl 512]} Qxf7 {[%emt 0:24:52]} 21. Rxf7 {[%emt 0:00:01]} Kxf7 {[%emt 0:00:13]} 22. Qf2+ {[%emt 0:00:06]} Kg8 {[%emt 0:01:52]} 23. Nxg5 {[%emt 0:00:07] White wants to mate with Ba3.} Be8 {[%emt 0:00:52]} 24. Ba3 {[%emt 0:00:25]} Nd7 {[%emt 0:04:11]} 25. cxd5 {[%emt 0:05:16]} cxd5 {[%emt 0:00:26]} 26. Qc2 {[%emt 0:00:52] Prevents Rc8.} Rg6 {[%emt 0:00:54]} 27. Nh3 {[%emt 0:00:41]} Rg7 {[%emt 0:05:23]} 28. Nf4 {[%emt 0:01:51]} Bf7 {[%emt 0:05:27]} 29. Qc7 {[%emt 0:01:27][%csl LRb7,LRd7]} Nf8 {[%emt 0:00:58][%cal Bd7f8,Bf8g6,Bg6h4,Bh4f5][%mdl 32]} 30. Qxb7 {[%emt 0:00:57]} Re8 {[%emt 0:00:11]} 31. Qxa7 {[%emt 0:01:29]} Ng6 {[%emt 0:00:43]} 32. Nh5 {[%emt 0:00:05]} Nh4 {[%emt 0:00:46]} 33. Nxg7 {[%emt 0:00:29]} Kxg7 {[%emt 0:00:14]} 34. Qb7 {[%emt 0:00:32]} Nf5 {[%emt 0:00:49]} 35. Kf2 {[%emt 0:00:06]} Kg6 {[%emt 0:02:04]} 36. Bc5 {[%emt 0:00:16]} Rg8 {[%emt 0:00:09]} 37. a4 {[%emt 0:00:30]} Rg7 {[%emt 0:00:07]} 38. a5 {[%emt 0:00:11]} Be8 {[%emt 0:00:42]} 39. Qb6 {[%emt 0:00:21]} Bd7 {[%emt 0:01:31]} 40. a6 {[%emt 0:00:31]} Rf7 {[%emt 0:00:10]} 41. Ke2 {[%emt 0:30:09]} Nh6 {[%emt 0:32:30]} 42. a7 {[%emt 0:00:10] White mates.} Ng4 {[%emt 0:00:24]} 43. a8=Q {[%emt 0:00:20]} Rf2+ {[%emt 0:00:19]} 44. Ke1 {[%emt 0:00:06] Weighted Error Value: White=0.09 (flawless) /Black=0.52.  Mistake:       	White=1     	Black=5      Inaccurate:     	---       	Black=1      OK:         	White=9     	Black=6      Best:        	---       	Black=1      Strong:       	White=1     	---        Brilliant:      	White=1     	---} 1-0

[Event "Bangabandhu Premier Div League 2023-24"]
[Site "Dhaka"]
[Date "2024.02.08"]
[Round "8.4"]
[White "Narayanan, Srinath"]
[Black "Manon, Reja Neer"]
[Result "1/2-1/2"]
[ECO "D30"]
[WhiteElo "2552"]
[BlackElo "2169"]
[Annotator "TA"]
[PlyCount "43"]
[EventDate "2024.02.01"]
[EventCountry "BAN"]
[SourceTitle "playchess.com"]
[Source "ChessBase"]
[SourceQuality "1"]
[TimeControl "40/5400+30:1800+30"]

{[%evp 9,43,17,27,21,40,18,13,4,8,-22,14,12,21,0,0,-47,-49,-56,-58,-56,-57,-69,-72,-214,-102,-79,-89,-95,-83,-79,0,-100,0,-106,0,-77]} 1. d4 {[%emt 0:00:06]} Nf6 {[%emt 0:02:17]} 2. c4 {[%emt 0:00:12]} c6 {[%emt 0:02:50]} 3. Nf3 {[%emt 0:00:22]} d5 {[%emt 0:00:06]} 4. e3 {[%emt 0:00:05]} e6 {[%emt 0:00:37]} 5. b3 {[%emt 1:32:15]} Nbd7 {[%emt 1:27:10]} 6. Bb2 {[%emt 0:00:30]} Ne4 {[%emt 0:00:30]} 7. Nfd2 {[%emt 0:00:30]} f5 {[%emt 0:00:30]} 8. Nxe4 {[%emt 0:00:30]} fxe4 {[%emt 0:00:30]} 9. g3 {[%emt 0:00:30]} h5 {[%emt 0:00:30]} 10. h4 {[%emt 0:00:30]} g5 {[%emt 0:00:30]} 11. hxg5 {[%emt 0:00:00]} Qxg5 {[%emt 0:00:00]} 12. Nd2 {[%emt 0:01:00]} (12. Nc3 $11) 12... Bd6 {[%emt 0:01:00]} 13. Qe2 {[%emt 0:00:30]} Nf6 {[%emt 0:00:30]} 14. O-O-O {[%emt 0:00:00]} Bd7 {[%emt 0:00:30]} 15. Rg1 {[%emt 0:01:00]} Ng4 {[%emt 0:00:30] Hoping for ...0-0.} 16. Re1 {[%emt 0:00:30] [#]} (16. Bg2 $17) 16... Rf8 {[%emt 0:00:30]} (16... O-O $1 $19 {has better winning chances.} 17. f3 exf3 18. Nxf3 Rxf3 19. Qxf3 Rf8) 17. f3 {[%emt 0:00:30]} exf3 {[%emt 0:00:00]} 18. Nxf3 {[%emt 0:00:00]} Qf5 {[%emt 0:01:00]} 19. Nd2 {[%emt 0:01:00]} Qg5 {[%emt 0:00:00]} 20. Nf3 {[%emt 0:00:00]} Qf5 {[%emt 0:00:00]} 21. Nd2 {[%emt 0:00:00]} Qg5 {[%emt 0:00:00]} 22. Nf3 {[%emt 0:01:30] Weighted Error Value: White=0.20 (precise) /Black=0.36.  Mistake:       	White=2     	Black=1      Inaccurate:     	White=1     	Black=1      OK:         	White=2     	Black=4      Best:        	White=2     	Black=1} 1/2-1/2

[Event "Bangabandhu Premier Div League 2023-24"]
[Site "Dhaka"]
[Date "2024.02.08"]
[Round "8.4"]
[White "Ankit Ray"]
[Black "Subrota, Biswas"]
[Result "1/2-1/2"]
[ECO "E04"]
[WhiteElo "1912"]
[BlackElo "2223"]
[Annotator "TA"]
[PlyCount "122"]
[EventDate "2024.02.01"]
[EventCountry "BAN"]
[SourceTitle "playchess.com"]
[Source "ChessBase"]
[SourceQuality "1"]
[TimeControl "40/5400+30:1800+30"]

{[%evp 23,122,26,22,14,28,29,22,10,21,17,22,-8,-9,-15,-11,-13,-7,-14,-12,-25,-16,-13,-10,-10,-8,-76,-12,-39,-22,-27,-27,-29,0,0,0,0,24,0,0,0,0,0,0,0,0,0,0,0,0,0,0,0,0,0,0,-6,0,0,0,-4,0,0,0,-4,0,0,0,0,0,0,0,0,4,0,0,0,0,0,11,2,24,0,0,0,0,0,0,0,10,0,22,19,69,75,104,106,98,98,106,72,82]} 1. Nf3 {[%emt 0:00:02]} Nf6 {[%emt 0:03:19]} 2. g3 {[%emt 0:00:12]} d5 {[%emt 0:00:08]} 3. Bg2 {[%emt 0:00:02]} c5 {[%emt 0:00:04]} 4. O-O {[%emt 0:00:07]} Nc6 {[%emt 0:01:39]} 5. d4 {[%emt 0:00:02]} e6 {[%emt 0:00:01]} 6. c4 {[%emt 0:00:17]} dxc4 {[%emt 0:00:07]} 7. dxc5 {[%emt 0:00:07]} Qxd1 {[%emt 0:00:06]} 8. Rxd1 {[%emt 0:00:04]} Bxc5 {[%emt 0:00:08]} 9. Nbd2 {[%emt 0:00:03]} c3 {[%emt 0:00:03]} 10. bxc3 {[%emt 0:00:03]} O-O {[%emt 0:00:29]} 11. Nb3 {[%emt 0:00:01]} Be7 {[%emt 0:00:15]} 12. c4 {[%emt 0:00:10]} Bd7 {[%emt 0:01:38]} 13. Bb2 {[%emt 0:00:06]} Rfc8 {[%emt 0:00:09]} 14. c5 {[%emt 0:03:26]} Be8 {[%emt 0:02:50]} 15. Ne5 {[%emt 0:16:59] Wards off Nd7. The position is equal.} Nxe5 {[%emt 0:01:01]} 16. Bxe5 {[%emt 0:00:46]} Bc6 {[%emt 0:00:02]} 17. Bxc6 {[%emt 0:29:22]} Rxc6 {[%emt 0:00:03]} 18. Bxf6 {[%emt 0:00:19]} Bxf6 {[%emt 0:00:22]} 19. Rab1 {[%emt 0:00:32]} Rc7 {[%emt 0:01:52]} 20. Rdc1 {[%emt 0:47:50]} g5 {[%emt 0:08:45]} 21. Rc4 {[%emt 0:00:00]} Rac8 {[%emt 0:01:26]} 22. Rb4 {[%emt 0:00:00]} Be7 {[%emt 0:01:39]} 23. e3 {[%emt 0:00:00]} Kg7 {[%emt 0:01:32]} 24. Rb5 {[%emt 0:00:00] [#]} (24. Kg2 $11 {remains equal.}) 24... Rd7 {[%emt 0:01:13]} ({Black should play} 24... a6 $1 $17 {[%cal Ra6b5]} 25. Rb6 Bxc5 26. Nxc5 Rxc5) 25. Rb2 {[%emt 0:00:00]} h5 {[%emt 0:03:40]} 26. h3 {[%emt 0:00:00]} Kg6 {[%emt 0:01:22]} 27. Kg2 {[%emt 0:00:00]} Bd8 {[%emt 0:01:29]} 28. Nd4 {[%emt 0:00:00]} b6 {[%emt 0:00:02]} 29. cxb6 {[%emt 0:00:00]} Bxb6 {[%emt 0:00:07]} 30. h4 {[%emt 0:00:00]} gxh4 {[%emt 0:08:06]} 31. Nf3 {[%emt 0:00:00] [#] Strongly threatening Ne5+.} Kh6 {[%emt 0:00:26]} 32. Nxh4 {[%emt 0:00:00]} Rc4 {[%emt 0:02:02]} 33. Nf3 {[%emt 0:00:00]} f6 {[%emt 0:00:03] Against Ne5} 34. R5b4 {[%emt 0:00:00]} Rdc7 {[%emt 0:00:36]} 35. Rxc4 {[%emt 0:00:00]} Rxc4 $11 {[%emt 0:00:06][%mdl 4096] Endgame. KRB-KRN} 36. Kf1 {[%emt 0:00:00]} e5 {[%emt 0:00:07]} 37. Ke2 {[%emt 0:00:00]} Rc1 {[%emt 0:00:55]} 38. Nd2 {[%emt 0:00:10]} Kg6 {[%emt 0:02:23]} 39. Nb3 {[%emt 0:00:17]} Rc4 {[%emt 0:00:47]} 40. Nd2 {[%emt 0:00:46]} Rc3 {[%emt 0:01:13]} 41. Ne4 {[%emt 0:30:50]} Ra3 {[%emt 0:30:11]} 42. Nd6 {[%emt 0:00:49]} Rc3 {[%emt 0:00:29]} 43. Ne4 {[%emt 0:00:02]} Rc4 {[%emt 0:00:26]} 44. Nd2 {[%emt 0:00:59]} Ra4 {[%emt 0:00:20]} 45. Rc2 {[%emt 0:00:07]} Rb4 {[%emt 0:03:11]} 46. Nc4 {[%emt 0:00:38]} Bd8 {[%emt 0:00:17]} 47. Kd3 {[%emt 0:03:16]} Rb1 {[%emt 0:02:47]} 48. Rb2 {[%emt 0:00:47]} Rd1+ {[%emt 0:00:12]} 49. Rd2 {[%emt 0:00:06]} Rc1 {[%emt 0:00:43]} 50. Rc2 {[%emt 0:00:10]} Ra1 {[%emt 0:00:59]} 51. Ke4 {[%emt 0:00:41]} Be7 {[%emt 0:02:04]} 52. Kd5 {[%emt 0:00:38]} Rd1+ {[%emt 0:00:14]} 53. Ke4 {[%emt 0:02:40]} Bb4 {[%emt 0:01:55]} 54. Kf3 {[%emt 0:01:48]} Ra1 {[%emt 0:02:27]} 55. Ke4 {[%emt 0:00:00]} Rg1 {[%emt 0:00:00]} 56. Kf3 {[%emt 0:00:00]} Re1 {[%emt 0:00:00]} 57. Rb2 {[%emt 0:00:00]} Bf8 {[%emt 0:00:00]} ({Better is} 57... Bc3 $11 58. Rb7 a5) 58. Rb8 {[%emt 0:00:00]} Bc5 {[%emt 0:00:00] White is better.} 59. Rc8 {[%emt 0:00:00]} Bb4 {[%emt 0:00:00]} 60. a3 {[%emt 0:00:00]} Bc3 {[%emt 0:00:00]} 61. Rc7 {[%emt 0:00:00]} a5 {[%emt 0:00:00] Weighted Error Value: White=0.07 (flawless) /Black=0.08 (flawless) .  Mistake:       	White=1     	Black=2      Inaccurate:     	White=3     	Black=2      OK:         	White=18    	Black=18} 1/2-1/2

[Event "Bangabandhu Premier Div League 2023-24"]
[Site "Dhaka"]
[Date "2024.02.08"]
[Round "8.5"]
[White "Mohammad Fahad, Rahman"]
[Black "Majumder, Ahmed Hossain"]
[Result "1-0"]
[ECO "D38"]
[WhiteElo "2418"]
[BlackElo "1934"]
[Annotator "RC"]
[PlyCount "43"]
[EventDate "2024.02.01"]
[EventCountry "BAN"]
[SourceTitle "playchess.com"]
[Source "ChessBase"]
[SourceQuality "1"]
[TimeControl "40/5400+30:1800+30"]

1. d4 {[%emt 0:00:25]} Nf6 {[%emt 0:01:10]} 2. c4 {[%emt 0:00:32]} e6 {[%emt 0:05:59]} 3. Nf3 {[%emt 0:00:49]} d5 {[%emt 1:24:51]} 4. Nc3 {[%emt 1:30:44]} Bb4 {[%emt 0:00:30]} 5. Qa4+ {[%emt 0:00:00]} Nc6 {[%emt 0:00:00]} 6. e3 {[%emt 0:01:00]} O-O {[%emt 0:00:00]} 7. Bd2 {[%emt 0:00:30]} Bd7 {[%emt 0:01:30]} 8. Qc2 {[%emt 0:00:00]} h6 {[%emt 0:00:00]} 9. Rd1 {[%emt 0:01:00]} Re8 {[%emt 0:01:00]} 10. a3 {[%emt 0:00:30]} Bxc3 {[%emt 0:00:30]} 11. Bxc3 {[%emt 0:00:00]} Ne4 {[%emt 0:00:00]} 12. Bd3 {[%emt 0:00:00]} Nxc3 {[%emt 0:00:00]} 13. Qxc3 {[%emt 0:00:00]} Qe7 {[%emt 0:00:00]} 14. O-O {[%emt 0:02:00]} a5 {[%emt 0:00:00]} 15. Rfe1 {[%emt 0:00:30]} dxc4 {[%emt 0:02:30]} 16. Bxc4 {[%emt 0:00:00]} a4 {[%emt 0:00:30]} 17. e4 {[%emt 0:00:00]} Na5 {[%emt 0:00:00]} 18. Ba2 {[%emt 0:01:30]} Bb5 {[%emt 0:01:00]} 19. h3 {[%emt 0:00:30]} Ra6 {[%emt 0:00:00]} 20. d5 {[%emt 0:00:30]} e5 {[%emt 0:01:00]} 21. d6 {[%emt 0:00:00]} cxd6 {[%emt 0:00:00]} 22. Rd5 {[%emt 0:00:00]} 1-0

[Event "Bangabandhu Premier Div League 2023-24"]
[Site "Dhaka"]
[Date "2024.02.08"]
[Round "8.5"]
[White "Sanket Chakravarty"]
[Black "Nasim Hossain, Bhuiyan"]
[Result "1-0"]
[ECO "C02"]
[WhiteElo "2361"]
[BlackElo "1812"]
[Annotator "RC"]
[PlyCount "45"]
[EventDate "2024.02.01"]
[EventCountry "BAN"]
[SourceTitle "playchess.com"]
[Source "ChessBase"]
[SourceQuality "1"]
[TimeControl "40/5400+30:1800+30"]

1. e4 {[%emt 0:00:03]} c5 {[%emt 0:02:37]} 2. c3 {[%emt 0:00:28]} e6 {[%emt 0:02:05]} 3. d4 {[%emt 0:00:15]} d5 {[%emt 0:00:07]} 4. e5 {[%emt 0:00:20]} Nc6 {[%emt 0:02:08]} 5. Nf3 {[%emt 0:00:10]} cxd4 {[%emt 0:00:35]} 6. cxd4 {[%emt 0:00:30]} Qb6 {[%emt 0:01:14]} 7. Nc3 {[%emt 0:02:27]} Bb4 {[%emt 0:00:35]} 8. Bd3 {[%emt 0:01:09]} Bd7 {[%emt 0:00:18]} 9. Be3 {[%emt 0:00:50]} Nge7 {[%emt 0:00:19]} 10. O-O {[%emt 0:00:35]} Bxc3 {[%emt 0:02:15]} 11. bxc3 {[%emt 0:00:23]} Na5 {[%emt 0:00:02]} 12. h4 {[%emt 0:13:34]} h6 {[%emt 0:05:59]} 13. h5 {[%emt 0:01:03]} Nf5 {[%emt 0:00:51]} 14. Bf4 {[%emt 0:03:15]} Nc4 {[%emt 0:02:41]} 15. Rb1 {[%emt 0:02:53]} Qc7 {[%emt 0:05:11]} 16. Bxf5 {[%emt 0:00:55]} exf5 {[%emt 0:00:24]} 17. e6 {[%emt 0:00:10]} Qxf4 {[%emt 0:04:35]} 18. exd7+ {[%emt 0:00:16]} Kxd7 {[%emt 0:00:24]} 19. Rb3 {[%emt 1:10:44]} b5 20. Rxb5 {[%emt 0:00:00]} Ke8 {[%emt 0:01:53]} 21. Rb7 {[%emt 0:00:00]} Kf8 {[%emt 0:00:24]} 22. Qa4 {[%emt 0:00:00]} Nd6 {[%emt 0:01:30]} 23. Qd7 {[%emt 0:00:00]} 1-0